[Event "Live Chess"]
[Site "Chess.com"]
[Date "2010.12.13"]
[Round "-"]
[White "onedaime"]
[Black "hipposcottimus"]
[Result "1-0"]
[CurrentPosition "8/k1p1N2p/pp6/6B1/6P1/1P3B1P/P3K3/8 b - -"]
[Timezone "UTC"]
[ECO "C20"]
[ECOUrl "https://www.chess.com/openings/Kings-Pawn-Opening-Leonardis-Variation"]
[UTCDate "2010.12.13"]
[UTCTime "21:15:10"]
[WhiteElo "1561"]
[BlackElo "1627"]
[TimeControl "60"]
[Termination "onedaime won on time"]
[StartTime "21:15:10"]
[EndDate "2010.12.13"]
[EndTime "21:17:22"]
[Link "https://www.chess.com/game/live/76995434"]

1. e4 {[%clk 0:01:00]} 1... e5 {[%clk 0:01:00]} 2. d3 {[%clk 0:00:59.5]} 2... Nc6 {[%clk 0:00:59.8]} 3. Nf3 {[%clk 0:00:59.1]} 3... Nf6 {[%clk 0:00:59.6]} 4. g3 {[%clk 0:00:58.7]} 4... d5 {[%clk 0:00:59]} 5. Bg2 {[%clk 0:00:58.3]} 5... dxe4 {[%clk 0:00:57.8]} 6. dxe4 {[%clk 0:00:57.7]} 6... Qxd1+ {[%clk 0:00:57.4]} 7. Kxd1 {[%clk 0:00:57.1]} 7... Nxe4 {[%clk 0:00:57.1]} 8. Ke2 {[%clk 0:00:56.1]} 8... Bg4 {[%clk 0:00:54.1]} 9. h3 {[%clk 0:00:54.8]} 9... Bh5 {[%clk 0:00:53.1]} 10. g4 {[%clk 0:00:54]} 10... Bg6 {[%clk 0:00:52.8]} 11. Nh4 {[%clk 0:00:52.4]} 11... Nd4+ {[%clk 0:00:41.7]} 12. Kd1 {[%clk 0:00:45.2]} 12... Nxf2+ {[%clk 0:00:40.3]} 13. Kd2 {[%clk 0:00:42]} 13... Nxh1 {[%clk 0:00:39.1]} 14. c3 {[%clk 0:00:41.4]} 14... Ng3 {[%clk 0:00:37.7]} 15. cxd4 {[%clk 0:00:39.5]} 15... e4 {[%clk 0:00:37.3]} 16. Nc3 {[%clk 0:00:37.8]} 16... O-O-O {[%clk 0:00:34.3]} 17. b3 {[%clk 0:00:35.9]} 17... Rxd4+ {[%clk 0:00:33.7]} 18. Ke3 {[%clk 0:00:34.3]} 18... Rd3+ {[%clk 0:00:31.6]} 19. Kf2 {[%clk 0:00:28.5]} 19... Rxc3 {[%clk 0:00:26.7]} 20. Bb2 {[%clk 0:00:27.5]} 20... Bd6 {[%clk 0:00:25.8]} 21. Bxc3 {[%clk 0:00:26.5]} 21... e3+ {[%clk 0:00:25.1]} 22. Kxe3 {[%clk 0:00:25.1]} 22... Re8+ {[%clk 0:00:24.8]} 23. Kd2 {[%clk 0:00:24]} 23... Be4 {[%clk 0:00:22]} 24. Re1 {[%clk 0:00:22.6]} 24... Bf4+ {[%clk 0:00:18.1]} 25. Kd1 {[%clk 0:00:19.2]} 25... Bf3+ {[%clk 0:00:13.5]} 26. Bxf3 {[%clk 0:00:18.2]} 26... Ne2 {[%clk 0:00:11]} 27. Rxe2 {[%clk 0:00:16.9]} 27... Rd8+ {[%clk 0:00:10.6]} 28. Ke1 {[%clk 0:00:15.6]} 28... Bd2+ {[%clk 0:00:09.5]} 29. Bxd2 {[%clk 0:00:14.3]} 29... g5 {[%clk 0:00:08.4]} 30. Nf5 {[%clk 0:00:12.8]} 30... f6 {[%clk 0:00:07.5]} 31. Ne7+ {[%clk 0:00:11.9]} 31... Kb8 {[%clk 0:00:06.5]} 32. Bc3 {[%clk 0:00:10.9]} 32... Re8 {[%clk 0:00:06.1]} 33. Bxf6 {[%clk 0:00:09]} 33... b6 {[%clk 0:00:05.6]} 34. Ng6 {[%clk 0:00:07.4]} 34... Rxe2+ {[%clk 0:00:04.8]} 35. Kxe2 {[%clk 0:00:06.1]} 35... a6 {[%clk 0:00:02.2]} 36. Ne7 {[%clk 0:00:05]} 36... Ka7 {[%clk 0:00:02]} 37. Bxg5 {[%clk 0:00:04.6]} 1-0

[Event "Live Chess"]
[Site "Chess.com"]
[Date "2010.12.13"]
[Round "-"]
[White "hipposcottimus"]
[Black "cyclone007"]
[Result "1-0"]
[CurrentPosition "1r1qkb1r/1p1bn1pp/3N1p2/4p3/4P3/1Q2BN2/PPP2PPP/3R1RK1 b k -"]
[Timezone "UTC"]
[ECO "A04"]
[ECOUrl "https://www.chess.com/openings/Reti-Opening-Arctic-Defense-2.e4"]
[UTCDate "2010.12.13"]
[UTCTime "21:12:56"]
[WhiteElo "1636"]
[BlackElo "1488"]
[TimeControl "60"]
[Termination "hipposcottimus won by checkmate"]
[StartTime "21:12:56"]
[EndDate "2010.12.13"]
[EndTime "21:13:58"]
[Link "https://www.chess.com/game/live/76994787"]

1. e4 {[%clk 0:01:00]} 1... f6 {[%clk 0:01:00]} 2. Nf3 {[%clk 0:00:59.7]} 2... e5 {[%clk 0:00:59.5]} 3. d4 {[%clk 0:00:59.4]} 3... Nc6 {[%clk 0:00:58.9]} 4. d5 {[%clk 0:00:57.4]} 4... Nce7 {[%clk 0:00:58.2]} 5. Bc4 {[%clk 0:00:56.3]} 5... c6 {[%clk 0:00:58.2]} 6. Bb3 {[%clk 0:00:56]} 6... cxd5 {[%clk 0:00:57]} 7. Bxd5 {[%clk 0:00:55.2]} 7... Nxd5 {[%clk 0:00:55.9]} 8. Qxd5 {[%clk 0:00:55]} 8... Rb8 {[%clk 0:00:53.2]} 9. O-O {[%clk 0:00:50.9]} 9... d6 {[%clk 0:00:52.6]} 10. Nc3 {[%clk 0:00:50.1]} 10... Qc7 {[%clk 0:00:51.7]} 11. Nb5 {[%clk 0:00:48.7]} 11... Qd7 {[%clk 0:00:49.1]} 12. Nxa7 {[%clk 0:00:47.2]} 12... Ne7 {[%clk 0:00:45.8]} 13. Qb3 {[%clk 0:00:43.3]} 13... Qc7 {[%clk 0:00:43]} 14. Nb5 {[%clk 0:00:42.2]} 14... Qb6 {[%clk 0:00:41.3]} 15. Be3 {[%clk 0:00:39.4]} 15... Qd8 {[%clk 0:00:37.9]} 16. Rad1 {[%clk 0:00:33.4]} 16... Bd7 {[%clk 0:00:36.4]} 17. Nxd6# {[%clk 0:00:30.2]} 1-0

[Event "Live Chess"]
[Site "Chess.com"]
[Date "2010.12.13"]
[Round "-"]
[White "cyclone007"]
[Black "hipposcottimus"]
[Result "0-1"]
[CurrentPosition "2k2r2/ppp5/7p/6p1/6p1/4K3/P3r3/8 w - -"]
[Timezone "UTC"]
[ECO "C44"]
[ECOUrl "https://www.chess.com/openings/Kings-Pawn-Opening-Kings-Knight-Variation-2...Nc6-3.d3-Nf6"]
[UTCDate "2010.12.13"]
[UTCTime "21:10:20"]
[WhiteElo "1493"]
[BlackElo "1631"]
[TimeControl "60"]
[Termination "hipposcottimus won on time"]
[StartTime "21:10:20"]
[EndDate "2010.12.13"]
[EndTime "21:12:19"]
[Link "https://www.chess.com/game/live/76993962"]

1. e4 {[%clk 0:01:00]} 1... e5 {[%clk 0:01:00]} 2. Nf3 {[%clk 0:00:59.3]} 2... Nc6 {[%clk 0:00:59.8]} 3. d3 {[%clk 0:00:58.8]} 3... Nf6 {[%clk 0:00:59.5]} 4. c3 {[%clk 0:00:58.3]} 4... d5 {[%clk 0:00:59.3]} 5. b3 {[%clk 0:00:57.9]} 5... dxe4 {[%clk 0:00:58.3]} 6. dxe4 {[%clk 0:00:57.3]} 6... Qxd1+ {[%clk 0:00:57.9]} 7. Kxd1 {[%clk 0:00:55.6]} 7... Nxe4 {[%clk 0:00:57.6]} 8. g3 {[%clk 0:00:54.1]} 8... Nxf2+ {[%clk 0:00:56.6]} 9. Ke1 {[%clk 0:00:52.1]} 9... Nxh1 {[%clk 0:00:56.3]} 10. Bg2 {[%clk 0:00:51.7]} 10... Nxg3 {[%clk 0:00:54.8]} 11. hxg3 {[%clk 0:00:50.1]} 11... Bg4 {[%clk 0:00:54.3]} 12. Kf2 {[%clk 0:00:49.7]} 12... O-O-O {[%clk 0:00:52.9]} 13. Nh4 {[%clk 0:00:48.5]} 13... f5 {[%clk 0:00:49.8]} 14. Bg5 {[%clk 0:00:47.5]} 14... Rd6 {[%clk 0:00:48]} 15. Nd2 {[%clk 0:00:44.6]} 15... h6 {[%clk 0:00:47]} 16. Nc4 {[%clk 0:00:43.3]} 16... Rd3 {[%clk 0:00:43]} 17. Bc1 {[%clk 0:00:41]} 17... Rxc3 {[%clk 0:00:41.7]} 18. Na5 {[%clk 0:00:38.1]} 18... Rc2+ {[%clk 0:00:40.7]} 19. Kg1 {[%clk 0:00:35]} 19... Nxa5 {[%clk 0:00:40.4]} 20. b4 {[%clk 0:00:33.5]} 20... Bxb4 {[%clk 0:00:39.3]} 21. Be3 {[%clk 0:00:30.5]} 21... Bc5 {[%clk 0:00:37.8]} 22. Bxc5 {[%clk 0:00:29.4]} 22... Rxc5 {[%clk 0:00:37.5]} 23. Re1 {[%clk 0:00:28.8]} 23... g5 {[%clk 0:00:36.2]} 24. Ng6 {[%clk 0:00:27.7]} 24... Re8 {[%clk 0:00:33.5]} 25. Rb1 {[%clk 0:00:21.3]} 25... e4 {[%clk 0:00:32.5]} 26. Bf1 {[%clk 0:00:18.5]} 26... Nc4 {[%clk 0:00:30.7]} 27. Bxc4 {[%clk 0:00:15.9]} 27... Rxc4 {[%clk 0:00:30.5]} 28. Ra1 {[%clk 0:00:14.3]} 28... e3 {[%clk 0:00:30.1]} 29. Kg2 {[%clk 0:00:12.9]} 29... e2 {[%clk 0:00:29.7]} 30. Re1 {[%clk 0:00:11.9]} 30... Rc2 {[%clk 0:00:29.1]} 31. Kf2 {[%clk 0:00:10.4]} 31... Rg8 {[%clk 0:00:27.5]} 32. Ne5 {[%clk 0:00:07.8]} 32... Bh5 {[%clk 0:00:22.3]} 33. g4 {[%clk 0:00:04.5]} 33... Bxg4 {[%clk 0:00:20.7]} 34. Nxg4 {[%clk 0:00:03.5]} 34... fxg4 {[%clk 0:00:20.5]} 35. Rxe2 {[%clk 0:00:02.4]} 35... Rf8+ {[%clk 0:00:20.2]} 36. Ke3 {[%clk 0:00:00.6]} 36... Rxe2+ {[%clk 0:00:18.5]} 0-1

[Event "Live Chess"]
[Site "Chess.com"]
[Date "2010.12.13"]
[Round "-"]
[White "hipposcottimus"]
[Black "tejenTurkmen"]
[Result "1-0"]
[CurrentPosition "8/5kpp/5p2/8/8/1PQ5/2P2PPP/4K2R b K -"]
[Timezone "UTC"]
[ECO "C62"]
[ECOUrl "https://www.chess.com/openings/Ruy-Lopez-Opening-Old-Steinitz-Defense-4.Bxc6"]
[UTCDate "2010.12.13"]
[UTCTime "21:05:42"]
[WhiteElo "1626"]
[BlackElo "1391"]
[TimeControl "60"]
[Termination "hipposcottimus won by resignation"]
[StartTime "21:05:42"]
[EndDate "2010.12.13"]
[EndTime "21:07:38"]
[Link "https://www.chess.com/game/live/76992869"]

1. e4 {[%clk 0:01:00]} 1... e5 {[%clk 0:01:00]} 2. Nf3 {[%clk 0:00:59.7]} 2... Nc6 {[%clk 0:00:59.4]} 3. Bb5 {[%clk 0:00:57.7]} 3... d6 {[%clk 0:00:57.5]} 4. Bxc6+ {[%clk 0:00:56.6]} 4... bxc6 {[%clk 0:00:57.2]} 5. d4 {[%clk 0:00:54.5]} 5... exd4 {[%clk 0:00:54.6]} 6. Nxd4 {[%clk 0:00:53.9]} 6... Ba6 {[%clk 0:00:54]} 7. Nxc6 {[%clk 0:00:52.3]} 7... Qd7 {[%clk 0:00:52.5]} 8. Nb4 {[%clk 0:00:51.9]} 8... Bb5 {[%clk 0:00:48.6]} 9. a4 {[%clk 0:00:49]} 9... Bxa4 {[%clk 0:00:44.6]} 10. b3 {[%clk 0:00:47.3]} 10... Bb5 {[%clk 0:00:43.8]} 11. Na3 {[%clk 0:00:46.6]} 11... a5 {[%clk 0:00:42.2]} 12. Nxb5 {[%clk 0:00:43.8]} 12... Qxb5 {[%clk 0:00:39.1]} 13. Bd2 {[%clk 0:00:39.5]} 13... Nf6 {[%clk 0:00:37]} 14. Qe2 {[%clk 0:00:35.9]} 14... Be7 {[%clk 0:00:35.5]} 15. Qxb5+ {[%clk 0:00:34.6]} 15... Nd7 {[%clk 0:00:30.2]} 16. Rxa5 {[%clk 0:00:33.7]} 16... O-O {[%clk 0:00:28.6]} 17. Rxa8 {[%clk 0:00:32.5]} 17... Nc5 {[%clk 0:00:26.3]} 18. Rxf8+ {[%clk 0:00:29.5]} 18... Bxf8 {[%clk 0:00:25.4]} 19. Nc6 {[%clk 0:00:29.1]} 19... Nxe4 {[%clk 0:00:21.7]} 20. Bf4 {[%clk 0:00:23.4]} 20... Nc3 {[%clk 0:00:18.3]} 21. Qb8 {[%clk 0:00:21.1]} 21... f6 {[%clk 0:00:14.9]} 22. Ne7+ {[%clk 0:00:19.4]} 22... Kf7 {[%clk 0:00:13.4]} 23. Nc8 {[%clk 0:00:16.6]} 23... Be7 {[%clk 0:00:12]} 24. Nxd6+ {[%clk 0:00:15.7]} 24... Bxd6 {[%clk 0:00:10.6]} 25. Bxd6 {[%clk 0:00:15.5]} 25... cxd6 {[%clk 0:00:09.8]} 26. Qxd6 {[%clk 0:00:15.1]} 26... Kg6 {[%clk 0:00:08.2]} 27. Qd3+ {[%clk 0:00:13.3]} 27... Kf7 {[%clk 0:00:05]} 28. Qxc3 {[%clk 0:00:12.8]} 1-0

[Event "Live Chess"]
[Site "Chess.com"]
[Date "2010.12.13"]
[Round "-"]
[White "tejenTurkmen"]
[Black "hipposcottimus"]
[Result "0-1"]
[CurrentPosition "8/7p/7k/6p1/8/7P/1r3q2/6K1 w - -"]
[Timezone "UTC"]
[ECO "C46"]
[ECOUrl "https://www.chess.com/openings/Three-Knights-Opening"]
[UTCDate "2010.12.13"]
[UTCTime "21:03:44"]
[WhiteElo "1394"]
[BlackElo "1623"]
[TimeControl "60"]
[Termination "hipposcottimus won by resignation"]
[StartTime "21:03:44"]
[EndDate "2010.12.13"]
[EndTime "21:05:28"]
[Link "https://www.chess.com/game/live/76992296"]

1. e4 {[%clk 0:01:00]} 1... e5 {[%clk 0:01:00]} 2. Nc3 {[%clk 0:00:59.7]} 2... Nc6 {[%clk 0:00:59.8]} 3. Nf3 {[%clk 0:00:59.1]} 3... Nf6 {[%clk 0:00:59.5]} 4. d3 {[%clk 0:00:58.7]} 4... Bb4 {[%clk 0:00:58.6]} 5. Be2 {[%clk 0:00:58.3]} 5... Bxc3+ {[%clk 0:00:58.3]} 6. bxc3 {[%clk 0:00:57.7]} 6... d5 {[%clk 0:00:57.7]} 7. c4 {[%clk 0:00:57.4]} 7... dxc4 {[%clk 0:00:54.8]} 8. dxc4 {[%clk 0:00:55.8]} 8... Qxd1+ {[%clk 0:00:54.6]} 9. Bxd1 {[%clk 0:00:54.5]} 9... Nd4 {[%clk 0:00:54.3]} 10. Nxd4 {[%clk 0:00:52.6]} 10... exd4 {[%clk 0:00:54]} 11. Bg5 {[%clk 0:00:50.4]} 11... Nxe4 {[%clk 0:00:52.6]} 12. Bf3 {[%clk 0:00:48.5]} 12... Nxg5 {[%clk 0:00:51.2]} 13. O-O {[%clk 0:00:47]} 13... Nxf3+ {[%clk 0:00:50.3]} 14. gxf3 {[%clk 0:00:46.4]} 14... Bh3 {[%clk 0:00:49.3]} 15. Rfe1+ {[%clk 0:00:45.3]} 15... Be6 {[%clk 0:00:46.4]} 16. Rxe6+ {[%clk 0:00:44.2]} 16... fxe6 {[%clk 0:00:44.5]} 17. Re1 {[%clk 0:00:43.9]} 17... O-O {[%clk 0:00:44.1]} 18. Rxe6 {[%clk 0:00:43.5]} 18... Rad8 {[%clk 0:00:43.2]} 19. Re7 {[%clk 0:00:42.8]} 19... d3 {[%clk 0:00:42.8]} 20. cxd3 {[%clk 0:00:41.2]} 20... Rxd3 {[%clk 0:00:40.8]} 21. Rxc7 {[%clk 0:00:40.7]} 21... Ra3 {[%clk 0:00:40.5]} 22. Rxb7 {[%clk 0:00:39.3]} 22... Rxa2 {[%clk 0:00:40.1]} 23. Rc7 {[%clk 0:00:37.7]} 23... a5 {[%clk 0:00:39.4]} 24. c5 {[%clk 0:00:36.9]} 24... a4 {[%clk 0:00:39.2]} 25. c6 {[%clk 0:00:36.3]} 25... a3 {[%clk 0:00:38.9]} 26. Rd7 {[%clk 0:00:32.8]} 26... Ra1+ {[%clk 0:00:38.5]} 27. Kg2 {[%clk 0:00:31.5]} 27... Rb1 {[%clk 0:00:38.1]} 28. c7 {[%clk 0:00:30.6]} 28... a2 {[%clk 0:00:37.8]} 29. Rd8 {[%clk 0:00:30]} 29... a1=Q {[%clk 0:00:33.4]} 30. Rxf8+ {[%clk 0:00:28.7]} 30... Kxf8 {[%clk 0:00:32.9]} 31. c8=Q+ {[%clk 0:00:27.1]} 31... Kf7 {[%clk 0:00:32.6]} 32. Qc4+ {[%clk 0:00:24.5]} 32... Kg6 {[%clk 0:00:31.8]} 33. Qe4+ {[%clk 0:00:23]} 33... Kh6 {[%clk 0:00:28.5]} 34. Qf4+ {[%clk 0:00:21.7]} 34... g5 {[%clk 0:00:26.4]} 35. Qf6+ {[%clk 0:00:20.1]} 35... Qxf6 {[%clk 0:00:24.7]} 36. h3 {[%clk 0:00:18.1]} 36... Rb3 {[%clk 0:00:24.3]} 37. Kg3 {[%clk 0:00:17]} 37... Qxf3+ {[%clk 0:00:24]} 38. Kh2 {[%clk 0:00:14.6]} 38... Rb2 {[%clk 0:00:23.7]} 39. Kg1 {[%clk 0:00:13.5]} 39... Qxf2+ {[%clk 0:00:22.9]} 0-1

[Event "Live Chess"]
[Site "Chess.com"]
[Date "2010.12.13"]
[Round "-"]
[White "hipposcottimus"]
[Black "tejenTurkmen"]
[Result "1-0"]
[CurrentPosition "r5k1/5ppp/8/8/8/q6P/p5PK/Q7 b - -"]
[Timezone "UTC"]
[ECO "C50"]
[ECOUrl "https://www.chess.com/openings/Italian-Game-3...d6-4.d4-exd4-5.Nxd4"]
[UTCDate "2010.12.13"]
[UTCTime "21:01:27"]
[WhiteElo "1620"]
[BlackElo "1397"]
[TimeControl "60"]
[Termination "hipposcottimus won on time"]
[StartTime "21:01:27"]
[EndDate "2010.12.13"]
[EndTime "21:03:32"]
[Link "https://www.chess.com/game/live/76991595"]

1. e4 {[%clk 0:01:00]} 1... e5 {[%clk 0:01:00]} 2. Nf3 {[%clk 0:00:59.6]} 2... Nc6 {[%clk 0:00:59.4]} 3. Bc4 {[%clk 0:00:59.4]} 3... d6 {[%clk 0:00:59]} 4. d4 {[%clk 0:00:57.2]} 4... exd4 {[%clk 0:00:56.7]} 5. Nxd4 {[%clk 0:00:56.9]} 5... Nxd4 {[%clk 0:00:56]} 6. Qxd4 {[%clk 0:00:56.4]} 6... Nf6 {[%clk 0:00:55.7]} 7. Bg5 {[%clk 0:00:55.6]} 7... Be7 {[%clk 0:00:54.9]} 8. Bxf6 {[%clk 0:00:54.8]} 8... Bxf6 {[%clk 0:00:54]} 9. Qd5 {[%clk 0:00:54.5]} 9... Be6 {[%clk 0:00:51.2]} 10. Qd3 {[%clk 0:00:54.1]} 10... Bxc4 {[%clk 0:00:49.4]} 11. Qxc4 {[%clk 0:00:53.9]} 11... Bxb2 {[%clk 0:00:49]} 12. c3 {[%clk 0:00:52.5]} 12... Bxa1 {[%clk 0:00:47.5]} 13. O-O {[%clk 0:00:52.2]} 13... O-O {[%clk 0:00:45.7]} 14. f4 {[%clk 0:00:51.8]} 14... Qf6 {[%clk 0:00:42]} 15. e5 {[%clk 0:00:50.4]} 15... dxe5 {[%clk 0:00:40.1]} 16. fxe5 {[%clk 0:00:49.8]} 16... Qxe5 {[%clk 0:00:39.4]} 17. Rf3 {[%clk 0:00:46.2]} 17... Qe1+ {[%clk 0:00:37]} 18. Rf1 {[%clk 0:00:45.8]} 18... Qe3+ {[%clk 0:00:35.7]} 19. Kh1 {[%clk 0:00:43.3]} 19... a6 {[%clk 0:00:32.4]} 20. a4 {[%clk 0:00:41.2]} 20... b6 {[%clk 0:00:26]} 21. Qa2 {[%clk 0:00:40.3]} 21... Bxc3 {[%clk 0:00:23.9]} 22. Nxc3 {[%clk 0:00:38.8]} 22... Qxc3 {[%clk 0:00:22.9]} 23. Qf2 {[%clk 0:00:38.6]} 23... Qc4 {[%clk 0:00:20.2]} 24. Qg3 {[%clk 0:00:36.3]} 24... Qxa4 {[%clk 0:00:19]} 25. Qxc7 {[%clk 0:00:35]} 25... Rac8 {[%clk 0:00:16.8]} 26. Qxb6 {[%clk 0:00:33.7]} 26... a5 {[%clk 0:00:15.7]} 27. Qf2 {[%clk 0:00:31.6]} 27... Qb5 {[%clk 0:00:14.4]} 28. h3 {[%clk 0:00:31.3]} 28... a4 {[%clk 0:00:13.2]} 29. Kh2 {[%clk 0:00:30]} 29... a3 {[%clk 0:00:12.4]} 30. Qa2 {[%clk 0:00:28.4]} 30... Ra8 {[%clk 0:00:11.1]} 31. Ra1 {[%clk 0:00:27.3]} 31... Qa4 {[%clk 0:00:10]} 32. Qe2 {[%clk 0:00:25.1]} 32... a2 {[%clk 0:00:08.7]} 33. Qb2 {[%clk 0:00:21.9]} 33... Rfb8 {[%clk 0:00:06.9]} 34. Qe2 {[%clk 0:00:20.5]} 34... Rb2 {[%clk 0:00:05.7]} 35. Qe1 {[%clk 0:00:19.2]} 35... Qa3 {[%clk 0:00:04.4]} 36. Qd1 {[%clk 0:00:17.9]} 36... Rb1 {[%clk 0:00:03.5]} 37. Qd4 {[%clk 0:00:13.8]} 37... Rxa1 {[%clk 0:00:01]} 38. Qxa1 {[%clk 0:00:13.5]} 1-0

[Event "Live Chess"]
[Site "Chess.com"]
[Date "2010.12.13"]
[Round "-"]
[White "hipposcottimus"]
[Black "Edanie"]
[Result "0-1"]
[CurrentPosition "3r2k1/7p/p5p1/8/4p3/4K3/P1r1R1PP/3n4 w - -"]
[Timezone "UTC"]
[ECO "B40"]
[ECOUrl "https://www.chess.com/openings/Sicilian-Defense-French-Variation"]
[UTCDate "2010.12.13"]
[UTCTime "20:58:48"]
[WhiteElo "1616"]
[BlackElo "1861"]
[TimeControl "60"]
[Termination "Edanie won on time"]
[StartTime "20:58:48"]
[EndDate "2010.12.13"]
[EndTime "21:01:02"]
[Link "https://www.chess.com/game/live/76990808"]

1. e4 {[%clk 0:01:00]} 1... c5 {[%clk 0:01:00]} 2. Nf3 {[%clk 0:00:59.7]} 2... e6 {[%clk 0:01:00]} 3. Bb5 {[%clk 0:00:59.4]} 3... Nc6 {[%clk 0:01:00]} 4. Be2 {[%clk 0:00:59.2]} 4... a6 {[%clk 0:00:59.3]} 5. d4 {[%clk 0:00:58.9]} 5... Nf6 {[%clk 0:00:58.8]} 6. e5 {[%clk 0:00:57.7]} 6... Nd5 {[%clk 0:00:57.1]} 7. dxc5 {[%clk 0:00:55]} 7... Bxc5 {[%clk 0:00:55.3]} 8. Bc4 {[%clk 0:00:54.8]} 8... Qb6 {[%clk 0:00:53.8]} 9. Bxd5 {[%clk 0:00:54.1]} 9... Bxf2+ {[%clk 0:00:52.2]} 10. Ke2 {[%clk 0:00:53.9]} 10... exd5 {[%clk 0:00:51.4]} 11. Rf1 {[%clk 0:00:51]} 11... Bc5 {[%clk 0:00:49.7]} 12. Qd3 {[%clk 0:00:48.3]} 12... O-O {[%clk 0:00:48.6]} 13. Nc3 {[%clk 0:00:47.7]} 13... g6 {[%clk 0:00:47.9]} 14. Be3 {[%clk 0:00:47]} 14... Bxe3 {[%clk 0:00:46.5]} 15. Qxe3 {[%clk 0:00:46.8]} 15... Qxb2 {[%clk 0:00:46]} 16. Kf2 {[%clk 0:00:43.2]} 16... d4 {[%clk 0:00:44.4]} 17. Kg1 {[%clk 0:00:43]} 17... dxe3 {[%clk 0:00:42.8]} 18. Na4 {[%clk 0:00:41]} 18... Qxc2 {[%clk 0:00:41.6]} 19. Nb6 {[%clk 0:00:32.8]} 19... Rb8 {[%clk 0:00:39.6]} 20. Ne1 {[%clk 0:00:29.8]} 20... Qc5 {[%clk 0:00:38.2]} 21. Na4 {[%clk 0:00:27.2]} 21... e2+ {[%clk 0:00:37.1]} 22. Rf2 {[%clk 0:00:24.7]} 22... Nxe5 {[%clk 0:00:35.8]} 23. Nxc5 {[%clk 0:00:23.8]} 23... b5 {[%clk 0:00:33.8]} 24. Rxe2 {[%clk 0:00:19.2]} 24... Nc4 {[%clk 0:00:32.9]} 25. Rf2 {[%clk 0:00:17.8]} 25... d5 {[%clk 0:00:32]} 26. Nf3 {[%clk 0:00:16.6]} 26... Be6 {[%clk 0:00:30.3]} 27. Ne5 {[%clk 0:00:16.3]} 27... Rb6 {[%clk 0:00:28.1]} 28. Nxe6 {[%clk 0:00:16]} 28... fxe6 {[%clk 0:00:26.7]} 29. Nd3 {[%clk 0:00:15.7]} 29... Rd6 {[%clk 0:00:25.3]} 30. Rb1 {[%clk 0:00:14.6]} 30... Rb8 {[%clk 0:00:22.7]} 31. Nb2 {[%clk 0:00:14.2]} 31... Rc6 {[%clk 0:00:21.6]} 32. Nxc4 {[%clk 0:00:13.5]} 32... bxc4 {[%clk 0:00:20.3]} 33. Re1 {[%clk 0:00:13.1]} 33... Rbc8 {[%clk 0:00:18.8]} 34. Rfe2 {[%clk 0:00:12.8]} 34... Re8 {[%clk 0:00:17.4]} 35. Rf2 {[%clk 0:00:11.6]} 35... d4 {[%clk 0:00:16.2]} 36. Ref1 {[%clk 0:00:11.4]} 36... d3 {[%clk 0:00:15.3]} 37. Rf3 {[%clk 0:00:11.2]} 37... e5 {[%clk 0:00:13.1]} 38. Rd1 {[%clk 0:00:10.8]} 38... e4 {[%clk 0:00:12.1]} 39. Re3 {[%clk 0:00:10.5]} 39... c3 {[%clk 0:00:11]} 40. Kf2 {[%clk 0:00:08.7]} 40... c2 {[%clk 0:00:10.1]} 41. Rc1 {[%clk 0:00:07.4]} 41... d2 {[%clk 0:00:09.5]} 42. Rxc2 {[%clk 0:00:06.8]} 42... Rxc2 {[%clk 0:00:08.4]} 43. Re2 {[%clk 0:00:05.4]} 43... Rd8 {[%clk 0:00:07.4]} 44. Ke3 {[%clk 0:00:03.9]} 44... d1=N+ {[%clk 0:00:04.3]} 0-1

[Event "Live Chess"]
[Site "Chess.com"]
[Date "2010.12.13"]
[Round "-"]
[White "fatfishfive"]
[Black "hipposcottimus"]
[Result "1-0"]
[CurrentPosition "B7/p3RQ2/n1p2kp1/4R3/1P6/P4PP1/8/6K1 b - -"]
[Timezone "UTC"]
[ECO "A20"]
[ECOUrl "https://www.chess.com/openings/English-Opening-Kings-English-Variation-2.e3"]
[UTCDate "2010.12.13"]
[UTCTime "20:56:12"]
[WhiteElo "1507"]
[BlackElo "1619"]
[TimeControl "60"]
[Termination "fatfishfive won by checkmate"]
[StartTime "20:56:12"]
[EndDate "2010.12.13"]
[EndTime "20:57:58"]
[Link "https://www.chess.com/game/live/76990137"]

1. e3 {[%clk 0:01:00]} 1... e5 {[%clk 0:01:00]} 2. c4 {[%clk 0:00:59.1]} 2... Nf6 {[%clk 0:00:56.3]} 3. g3 {[%clk 0:00:58.3]} 3... d5 {[%clk 0:00:55.8]} 4. cxd5 {[%clk 0:00:56.2]} 4... Nxd5 {[%clk 0:00:54.4]} 5. Bg2 {[%clk 0:00:55.2]} 5... Nf6 {[%clk 0:00:54.1]} 6. Nc3 {[%clk 0:00:54.1]} 6... e4 {[%clk 0:00:53.8]} 7. Nxe4 {[%clk 0:00:51.6]} 7... Bf5 {[%clk 0:00:53.2]} 8. Nxf6+ {[%clk 0:00:49.3]} 8... Qxf6 {[%clk 0:00:52.9]} 9. Bxb7 {[%clk 0:00:47.1]} 9... c6 {[%clk 0:00:50.4]} 10. Bxa8 {[%clk 0:00:45.9]} 10... Be4 {[%clk 0:00:48.3]} 11. f3 {[%clk 0:00:43.8]} 11... Bg6 {[%clk 0:00:44.3]} 12. Rb1 {[%clk 0:00:41.7]} 12... Bb4 {[%clk 0:00:43.7]} 13. a3 {[%clk 0:00:39.7]} 13... Ba5 {[%clk 0:00:43.4]} 14. b4 {[%clk 0:00:38.7]} 14... Bb6 {[%clk 0:00:43.1]} 15. Bb2 {[%clk 0:00:37.5]} 15... O-O {[%clk 0:00:42.8]} 16. Bxf6 {[%clk 0:00:36.1]} 16... gxf6 {[%clk 0:00:42.6]} 17. Nh3 {[%clk 0:00:34]} 17... Re8 {[%clk 0:00:42.4]} 18. Nf4 {[%clk 0:00:32.5]} 18... f5 {[%clk 0:00:40.8]} 19. Nxg6 {[%clk 0:00:31.2]} 19... fxg6 {[%clk 0:00:39.5]} 20. O-O {[%clk 0:00:30]} 20... Bxe3+ {[%clk 0:00:39.2]} 21. dxe3 {[%clk 0:00:28.4]} 21... Rxe3 {[%clk 0:00:38.9]} 22. Qd8+ {[%clk 0:00:26.9]} 22... Re8 {[%clk 0:00:38.6]} 23. Qxe8+ {[%clk 0:00:25]} 23... Kg7 {[%clk 0:00:38.4]} 24. Rfe1 {[%clk 0:00:23.9]} 24... Kh6 {[%clk 0:00:38.1]} 25. Re7 {[%clk 0:00:22.1]} 25... Kh5 {[%clk 0:00:37.8]} 26. Qh8 {[%clk 0:00:20.5]} 26... Kg5 {[%clk 0:00:37.5]} 27. Qxh7 {[%clk 0:00:19.4]} 27... f4 {[%clk 0:00:36.5]} 28. Rbe1 {[%clk 0:00:17.9]} 28... fxg3 {[%clk 0:00:35.5]} 29. hxg3 {[%clk 0:00:16]} 29... Na6 {[%clk 0:00:19.2]} 30. R1e5+ {[%clk 0:00:14.4]} 30... Kf6 {[%clk 0:00:17.4]} 31. Qf7# {[%clk 0:00:12.2]} 1-0